bitfinex/quotes_SOLUSD_20241101
["timestamp","ask_amount","ask_price","bid_price","bid_amount"]
[1730442793278,10.30045635,165.91,165.86,10.30045635]
[1730442794685,10.30045635,165.92,165.87,10.30045635]
[1730442795790,10.30045635,165.92,165.87,16.32905635]
[1730442797484,10.30045635,165.92,165.87,6.0286]
[1730442801594,10.30045635,165.91,165.87,6.0286]
[1730442808369,10.30045635,165.92,165.87,6.0286]
[1730442808995,10.30045635,165.93,165.87,16.32905635]
[1730442809197,10.30045635,165.93,165.87,10.30045635]
[1730442809498,10.30045635,165.92,165.86,31.40245635]
[1730442810478,16.32765635,165.92,165.86,31.40245635]
[1730442811080,6.0272,165.92,165.87,10.30045635]
[1730442811588,10.30045635,165.93,165.87,10.30045635]
[1730442812479,11.34836166,165.96,165.91,10.30045635]
[1730442812673,10.30045635,165.98,165.92,10.30045635]
[1730442812872,10.30045635,165.98,165.93,10.30045635]
[1730442814514,10.30045635,165.98,165.93,16.32695635]
[1730442816394,16.32525635,165.98,165.93,16.32695635]
[1730442817294,6.0248,165.98,165.94,10.30045635]
[1730442817781,16.32525635,165.98,165.93,10.30045635]
[1730442818293,6.0248,165.98,165.94,10.30045635]
[1730442819684,10.30045635,166.0,165.95,10.30045635]
[1730442820500,10.30045635,166.01,165.96,10.30045635]
[1730442820900,1.3331283,166.03,165.95,16.32605635]
[1730442820901,10.30045635,166.0,165.95,16.32605635]
[1730442821984,10.30045635,166.02,165.96,10.30045635]
[1730442822391,10.30045635,166.01,165.96,16.32585635]
[1730442823799,10.30045635,166.01,165.96,31.38965635]
[1730442824102,10.30045635,166.02,165.97,10.30045635]
[1730442824285,10.30045635,166.01,165.96,31.38965635]
[1730442824797,10.30045635,166.0,165.96,21.0892]
[1730442824980,51.6321254,166.05,165.95,32.22835635]
[1730442824981,10.30045635,165.98,165.95,21.9279]
[1730442825186,10.30045635,165.98,165.95,15.7835]
[1730442828089,10.30045635,165.99,165.95,15.7835]
[1730442832392,10.30045635,165.99,165.95,21.8093]
[1730442832709,10.30045635,166.02,165.96,10.30045635]
[1730442832883,10.30045635,166.02,165.95,36.874]
[1730442832884,10.30045635,166.02,165.97,10.30045635]
[1730442833796,10.30045635,166.02,165.96,16.32565635]
[1730442834205,10.30045635,166.01,165.96,6.0252]
[1730442835095,10.30045635,166.0,165.96,6.0252]
[1730442836411,10.30045635,166.0,165.95,30.8482]
[1730442836589,10.30045635,165.98,165.95,15.0647]
[1730442839690,17.07526221,166.04,165.92,10.30045635]
[1730442839691,10.30045635,165.97,165.92,10.30045635]
[1730442839891,10.30045635,165.97,165.92,6.0266]
[1730442840084,10.30045635,165.96,165.92,6.0266]
[1730442840609,10.30045635,165.97,165.92,6.0266]
[1730442841314,10.30045635,165.97,165.92,16.32705635]
[1730442841510,10.30045635,165.97,165.92,6.0266]
[1730442841710,10.30045635,165.94,165.91,21.095]
[1730442842102,10.30045635,165.94,165.87,52.3345]
[1730442842103,10.30045635,165.92,165.84,6.0296]
[1730442842420,10.30045635,165.87,165.84,6.0296]
[1730442843413,10.30045635,165.87,165.83,30.8426]
[1730442843592,10.30045635,165.87,165.83,36.8728]
[1730442844009,10.30045635,165.89,165.83,47.17325635]
[1730442844211,10.30045635,165.89,165.84,10.30045635]
[1730442844914,10.30045635,165.89,165.83,47.17325635]
[1730442846394,10.30045635,165.9,165.83,36.8728]
[1730442846594,10.30045635,165.9,165.84,10.30045635]
[1730442847295,10.30045635,165.86,165.81,6.26218087]
[1730442847503,10.30045635,165.85,165.81,6.26218087]
[1730442848316,10.30045635,165.85,165.81,12.29298087]
[1730442848516,10.30045635,165.86,165.81,12.29298087]
[1730442848704,16.32945635,165.87,165.81,37.67083722]
[1730442849897,10.30045635,165.86,165.81,27.37038087]
[1730442851404,10.30045635,165.85,165.81,27.37038087]
[1730442852789,10.30045635,165.86,165.81,37.67083722]
[1730442856114,10.26919364,165.86,165.81,37.67083722]
[1730442862412,10.26919364,165.86,165.81,27.37038087]
[1730442862720,10.30045635,165.85,165.81,27.37038087]
[1730442864401,10.30045635,165.83,165.81,21.33958087]
[1730442864603,10.30045635,165.83,165.81,15.0774]
[1730442866720,10.30045635,165.83,165.79,6.0317]
[1730442867619,10.30045635,165.83,165.78,36.47644293]
[1730442867620,10.30045635,165.81,165.78,15.0801]
[1730442868123,10.30045635,165.8,165.76,6.0328]
[1730442869298,10.30045635,165.79,165.75,6.26415407]
[1730442869623,10.30045635,165.79,165.74,21.1162]
[1730442869825,10.30045635,165.8,165.74,31.41665635]
[1730442870122,10.30045635,165.81,165.75,10.30045635]
[1730442870422,10.30045635,165.81,165.75,16.33335635]
[1730442870804,10.30045635,165.8,165.75,6.0329]
[1730442871399,10.4303,165.83,165.74,25.38345635]
[1730442871400,10.30045635,165.79,165.74,25.38345635]
[1730442871604,10.30045635,165.78,165.74,21.1165]
[1730442871820,10.30045635,165.79,165.74,21.1165]
[1730442873734,10.30045635,165.8,165.74,31.41695635]
[1730442874716,16.33175635,165.8,165.74,31.41695635]
[1730442875732,10.30045635,165.79,165.74,21.1165]
[1730442876618,10.30045635,165.82,165.76,10.30045635]
[1730442876925,10.30045635,165.83,165.77,10.30045635]
[1730442877328,10.30045635,165.82,165.76,10.30045635]
[1730442878720,10.30045635,165.82,165.77,6.0324]
[1730442882336,10.30045635,165.81,165.77,6.0324]
[1730442884536,10.30045635,165.81,165.76,6.0328]
[1730442888127,10.30045635,165.81,165.76,21.1148]
[1730442891032,10.30045635,165.82,165.76,31.41525635]
[1730442891220,10.30045635,165.81,165.76,31.41525635]
[1730442897240,10.30045635,165.82,165.76,31.41525635]
[1730442898648,16.33125635,165.82,165.76,31.41525635]
[1730442900733,10.30045635,165.84,165.78,10.30045635]
[1730442901039,1.04867698,165.88,165.75,15.0412]
[1730442901040,0.28783117,165.83,165.75,15.0412]
[1730442901257,0.28783117,165.83,165.73,27.7274]
[1730442901447,10.30045635,165.78,165.73,27.7274]
[1730442902030,10.30045635,165.77,165.73,6.6088]
[1730442902230,10.30045635,165.76,165.72,6.2894287]
[1730442903146,10.30045635,165.76,165.71,22.5644]
[1730442903147,10.30045635,165.76,165.71,16.5298]
[1730442903650,10.30045635,165.77,165.71,47.95105635]
[1730442905433,10.30045635,165.73,165.69,6.26958157]
[1730442905737,10.30045635,165.74,165.69,10.66385635]
[1730442905957,10.30045635,165.76,165.7,10.30045635]
[1730442906826,6.0324,165.77,165.7,6.0348]
[1730442906827,10.30045635,165.75,165.7,6.0348]
[1730442907450,6.0324,165.77,165.7,6.0348]
[1730442907451,10.30045635,165.76,165.7,16.33525635]
[1730442908044,10.30045635,165.75,165.7,16.33525635]
[1730442908244,10.30045635,165.76,165.7,31.42275635]
[1730442908429,10.30045635,165.75,165.7,21.1223]
[1730442910838,10.30045635,165.76,165.71,10.30045635]
[1730442911551,11.34945443,165.78,165.72,10.30045635]
[1730442912532,17.38155443,165.78,165.72,16.33445635]
[1730442913048,1.04899808,165.78,165.75,10.30045635]
[1730442913377,16.33185635,165.8,165.74,10.30045635]
[1730442913538,6.0314,165.8,165.73,49.41524035]
[1730442913747,10.30045635,165.78,165.73,49.41524035]
[1730442914756,10.30045635,165.78,165.74,6.0335]
[1730442914935,10.30045635,165.78,165.74,6.192431]
[1730442915437,10.30045635,165.79,165.74,6.192431]
[1730442915857,10.30045635,165.78,165.74,6.192431]
[1730442916063,10.30045635,165.79,165.74,6.192431]
[1730442916749,10.30045635,165.79,165.74,21.276231]
[1730442917263,10.30045635,165.8,165.74,31.57668735]
[1730442917442,10.30045635,165.81,165.75,10.30045635]
[1730442918260,10.30045635,165.82,165.76,31.41525635]
[1730442919066,10.58828752,165.83,165.76,31.41525635]
[1730442919450,10.58828752,165.83,165.77,10.30045635]
[1730442919768,10.30045635,165.83,165.78,10.30045635]
[1730442919969,10.30045635,165.84,165.78,10.30045635]
[1730442920761,10.30045635,165.84,165.79,6.0317]
[1730442920972,16.32965635,165.86,165.8,10.30045635]
[1730442921140,10.30045635,165.85,165.79,46.46945635]
[1730442921856,10.30045635,165.84,165.79,46.46945635]
[1730442922571,10.30045635,165.85,165.8,10.30045635]
[1730442922743,10.30045635,165.85,165.79,46.46945635]
[1730442923235,10.30045635,165.84,165.79,46.46945635]
[1730442924242,10.30045635,165.85,165.79,46.46945635]
[1730442925047,10.30045635,165.86,165.8,10.30045635]
[1730442925462,16.32975635,165.86,165.8,16.33155635]
[1730442929073,6.0293,165.86,165.81,10.30045635]
[1730442930162,6.0293,165.86,165.81,6.0309]
[1730442930163,16.32975635,165.86,165.81,6.0309]
[1730442932267,16.32975635,165.86,165.81,10.30045635]
[1730442932568,6.50396646,165.88,165.83,10.30045635]
[1730442932569,16.80442281,165.88,165.83,10.30045635]
[1730442932784,16.80442281,165.88,165.82,10.30045635]
[1730442933065,10.30045635,165.87,165.82,10.30045635]
[1730442933471,22.83282281,165.88,165.82,10.30045635]
[1730442933661,22.83282281,165.88,165.82,16.33085635]
[1730442934554,10.30045635,165.87,165.82,16.33085635]
[1730442936369,22.83282281,165.88,165.83,10.30045635]
[1730442936953,12.53236646,165.88,165.83,10.30045635]
[1730442938467,12.53236646,165.88,165.83,16.33065635]
[1730442938771,22.83282281,165.88,165.83,6.0302]
[1730442939563,22.83282281,165.88,165.83,10.30045635]
[1730442939961,12.53236646,165.88,165.83,10.30045635]
[1730442940172,10.30045635,165.89,165.84,10.30045635]
[1730442940364,10.30045635,165.9,165.84,10.30045635]
[1730442940776,6.79179763,165.93,165.85,34.07734035]
[1730442940777,10.30045635,165.91,165.85,34.07734035]
[1730442941352,10.30045635,165.91,165.86,10.30045635]
[1730442941554,10.30045635,165.92,165.87,10.30045635]
[1730442941855,10.30045635,165.92,165.87,16.32915635]
[1730442942271,10.30045635,165.93,165.88,34.07734035]
[1730442942487,10.30045635,165.95,165.89,10.30045635]
[1730442942772,10.30045635,165.94,165.88,34.07734035]
[1730442942960,10.30045635,165.93,165.88,34.07734035]
[1730442943563,10.30045635,165.93,165.88,40.10564035]
[1730442944475,10.30045635,165.96,165.9,10.30045635]
[1730442944775,16.32575635,165.97,165.92,10.30045635]
[1730442945479,6.0253,165.97,165.92,10.30045635]
[1730442945774,10.30045635,165.98,165.92,10.30045635]
[1730442945775,16.32525635,165.98,165.93,10.30045635]
[1730442946279,16.32485635,166.0,165.95,10.30045635]
[1730442946575,16.32405635,166.02,165.97,10.30045635]
[1730442947096,6.0236,166.02,165.97,10.30045635]
[1730442947588,16.32405635,166.02,165.97,10.30045635]
[1730442947782,16.32405635,166.02,165.97,16.32555635]
[1730442950784,10.30045635,166.01,165.96,26.26895635]
[1730442951585,10.30045635,165.99,165.95,15.0646]
[1730442952094,10.30045635,166.0,165.95,21.0905]
[1730442952273,10.30045635,165.99,165.95,21.0905]
[1730442957875,10.30045635,166.0,165.95,21.0905]
[1730442959284,10.30045635,166.0,165.95,15.0646]
[1730442959483,10.30045635,165.97,165.95,15.0646]
[1730442959675,6.0226,166.04,165.92,22.0925]
[1730442959676,10.30045635,165.96,165.92,22.0925]
[1730442959875,10.30045635,165.95,165.92,15.7074]
[1730442960680,10.30045635,165.96,165.92,15.7074]
[1730442961401,10.30045635,165.96,165.92,21.7342]
[1730442962676,10.30045635,165.95,165.92,21.7342]
[1730442962885,10.30045635,165.95,165.91,15.0676]
[1730442963981,10.30045635,165.98,165.92,10.30045635]
[1730442964206,10.30045635,165.99,165.93,10.30045635]
[1730442964512,10.30045635,165.98,165.92,34.07734035]
[1730442965373,10.30045635,165.98,165.93,6.0266]
[1730442965998,10.30045635,165.98,165.93,21.0931]
[1730442966504,10.30045635,165.99,165.93,31.39355635]
[1730442968181,10.30045635,166.0,165.94,34.07734035]
[1730442969623,10.30045635,166.0,165.95,6.0259]
[1730442970111,10.30045635,165.99,165.95,6.0259]
[1730442973307,10.30045635,165.98,165.94,23.776884]
[1730442973611,10.30045635,165.98,165.94,29.803084]
[1730442974694,10.30045635,166.01,165.95,10.30045635]
[1730442974894,10.30045635,166.0,165.94,55.16914035]
[1730442975088,10.30045635,165.99,165.94,44.868684]
[1730442975913,10.30045635,166.0,165.94,55.16914035]
[1730442976909,10.30045635,166.01,165.95,10.30045635]
[1730442977814,10.30045635,166.03,165.98,6.0248]
[1730442978022,6.0222,166.05,165.98,16.32525635]
[1730442978023,10.30045635,166.04,165.98,16.32525635]
[1730442978314,10.30045635,166.04,165.98,47.40485635]
[1730442980910,16.32305635,166.04,165.98,47.40485635]
[1730442981317,10.30045635,166.04,165.98,47.40485635]
[1730442981622,10.30045635,166.04,165.99,23.776884]
[1730442982311,10.30045635,166.04,165.99,34.07734035]
[1730442982622,10.30045635,166.04,166.0,6.024]
[1730442983101,10.30045635,166.03,166.0,6.024]
[1730442983302,10.30045635,166.01,165.98,31.0796]
[1730442983616,10.30045635,166.01,165.98,16.0176]
[1730442984021,10.30045635,166.02,165.98,16.0176]
[1730442984226,10.30045635,166.03,165.98,16.0176]
[1730442984521,10.30045635,166.03,165.98,22.0423]
[1730442984720,10.30045635,166.03,165.99,23.776884]
[1730442985028,10.30045635,166.04,165.99,23.776884]
[1730442985211,10.30045635,166.04,165.99,34.07734035]
[1730442986215,10.4303,166.1,166.01,23.776884]
[1730442986216,10.30045635,166.05,166.01,23.776884]
[1730442987108,10.30045635,166.06,166.01,34.07734035]
[1730442988016,10.30045635,166.06,166.02,6.0233]
[1730442989026,10.30045635,166.08,166.02,16.32375635]
[1730442989206,10.30045635,166.07,166.02,21.0817]
[1730442989405,10.30045635,166.06,166.02,21.0817]
[1730442991015,10.30045635,166.05,166.02,21.0817]
[1730442993011,10.30045635,166.04,166.02,15.0584]
[1730442995924,10.30045635,166.03,166.02,15.0584]
[1730442996127,10.30045635,166.04,166.02,38.835284]
[1730442996335,10.30045635,166.04,166.02,15.0584]
[1730442997032,10.30045635,166.05,166.02,15.0584]
[1730443002037,10.30045635,166.04,166.02,15.0584]
[1730443003217,10.30045635,166.05,166.02,15.0584]
[1730443003412,10.30045635,166.06,166.02,21.0817]
[1730443003725,7.15925064,166.12,166.02,21.0817]
[1730443003726,10.30045635,166.05,166.02,15.0584]
[1730443005336,10.30045635,166.06,166.02,15.0584]
[1730443005525,10.30045635,166.06,166.02,21.0817]
[1730443007642,10.30045635,166.05,166.02,21.0817]
[1730443013423,10.30045635,166.06,166.02,21.0817]
[1730443016044,10.30045635,166.05,166.02,15.0584]
[1730443016344,10.30045635,166.05,166.01,23.776884]
[1730443016723,10.30045635,166.05,166.01,29.800584]
[1730443017845,10.30045635,166.04,166.01,23.776884]
[1730443020029,10.30045635,166.05,166.01,23.776884]
[1730443021135,10.30045635,166.05,166.0,6.6009]
[1730443021445,10.30045635,166.03,166.0,6.6009]
[1730443022450,10.30045635,166.01,165.98,16.0176]
[1730443022655,10.30045635,166.0,165.96,21.6089]
[1730443022948,10.30045635,166.01,165.96,37.93485635]
[1730443023156,10.30045635,166.04,165.98,10.30045635]
[1730443023450,10.30045635,166.03,165.98,10.30045635]
[1730443023821,10.30045635,166.03,165.99,23.776884]
[1730443025453,10.30045635,166.03,165.99,29.801284]
[1730443025839,10.30045635,166.04,165.99,29.801284]
[1730443027242,16.32275635,166.05,165.99,55.16284035]
[1730443027453,16.32275635,166.05,165.99,71.39594035]
[1730443028258,16.32235635,166.06,166.0,10.30045635]
[1730443028434,6.022,166.06,165.99,71.39594035]
[1730443028641,10.30045635,166.05,165.99,71.39594035]
[1730443028866,10.30045635,166.05,166.0,10.30045635]
[1730443029655,10.30045635,166.05,166.0,16.32435635]
[1730443029836,10.30045635,166.05,166.0,6.0239]
[1730443030037,10.30045635,166.04,166.0,6.0239]
[1730443030254,10.30045635,166.04,165.99,65.37154035]
[1730443030462,10.30045635,166.02,165.99,61.095484]
[1730443030640,10.30045635,166.01,165.96,38.18810087]
[1730443030840,6.022,166.06,165.96,44.21330087]
[1730443030841,10.30045635,166.02,165.96,44.21330087]
[1730443031354,10.30045635,166.02,165.97,10.30045635]
[1730443031858,10.30045635,166.03,165.97,10.30045635]
[1730443032062,10.30045635,166.02,165.97,10.30045635]
[1730443032359,10.30045635,166.05,165.99,10.30045635]
[1730443032563,10.30045635,166.04,165.98,10.30045635]
[1730443033157,10.30045635,166.03,165.98,16.32505635]
[1730443033546,10.4303,166.09,165.98,6.0246]
[1730443033547,10.30045635,166.02,165.98,6.0246]
[1730443033760,10.30045635,166.01,165.97,6.0251]
[1730443033961,10.30045635,166.0,165.96,27.88764452]
[1730443034265,10.30045635,165.97,165.95,15.4795]
[1730443034458,10.30045635,165.97,165.94,6.0262]
[1730443034664,10.30045635,165.97,165.93,12.30207404]
[1730443035156,10.30045635,165.98,165.93,12.30207404]
[1730443036362,10.30045635,165.97,165.93,12.30207404]
[1730443036559,10.30045635,165.96,165.93,12.30207404]
[1730443037176,10.30045635,165.96,165.93,6.27547404]
[1730443037363,10.30045635,165.96,165.92,21.0934]
[1730443037756,10.30045635,165.97,165.92,21.0934]
[1730443038266,10.30045635,166.01,165.95,10.30045635]
[1730443039062,10.30045635,166.02,165.96,10.30045635]
[1730443039265,10.30045635,166.02,165.97,31.38845635]
[1730443040164,10.30045635,165.98,165.94,15.0656]
[1730443042867,10.30045635,165.97,165.94,15.0656]
[1730443043172,10.30045635,165.96,165.93,6.0266]
[1730443044359,10.30045635,165.96,165.91,28.85249363]
[1730443044564,10.30045635,165.96,165.92,6.027]
[1730443045172,10.30045635,165.93,165.9,15.0684]
[1730443045364,10.30045635,165.96,165.9,31.39645635]
[1730443045554,10.30045635,165.96,165.9,37.6783711]
[1730443046160,10.30045635,165.94,165.9,21.35031475]
[1730443046470,16.32675635,165.94,165.9,21.35031475]
[1730443048468,10.30045635,165.94,165.9,21.35031475]
[1730443049056,10.30045635,165.95,165.9,27.37801475]
[1730443049382,10.30045635,165.96,165.9,37.6784711]
[1730443050085,10.30045635,165.96,165.9,31.39655635]
[1730443056188,10.30045635,165.97,165.91,10.30045635]
[1730443057055,10.30045635,165.97,165.92,6.027]
[1730443058181,10.30045635,165.97,165.92,21.0945]
[1730443058471,0.96744228,166.04,165.96,10.30045635]
[1730443058675,10.30045635,166.04,165.98,10.30045635]
[1730443058850,10.4303,166.06,165.99,10.30045635]
[1730443059047,10.30045635,166.03,165.98,10.30045635]
[1730443059253,10.30045635,166.03,165.96,23.776884]
[1730443059453,10.30045635,166.03,165.97,10.30045635]
[1730443060190,10.30045635,166.03,165.98,31.38725635]
[1730443061164,10.30045635,166.04,165.98,31.38725635]
[1730443061583,10.30045635,166.05,165.99,10.30045635]
[1730443061753,16.5461,166.1,165.98,15.062]
[1730443061754,10.30045635,166.06,166.0,10.30045635]
[1730443061959,10.30045635,166.05,165.99,10.30045635]
[1730443063179,10.30045635,166.06,166.0,31.38465635]
[1730443063487,10.30045635,166.05,166.0,21.0842]
[1730443064275,10.30045635,166.06,166.0,25.36065635]
[1730443065656,10.30045635,166.06,166.01,10.30045635]
[1730443065856,10.30045635,166.07,166.01,10.30045635]
[1730443066676,10.30045635,166.07,166.02,6.0233]
[1730443068667,10.30045635,166.07,166.02,16.32375635]
[1730443068872,10.30045635,166.07,166.02,31.38215635]
[1730443069766,10.30045635,166.06,166.02,21.0817]
[1730443069963,10.30045635,166.05,166.02,21.0817]
[1730443070167,10.30045635,166.06,166.02,21.0817]
[1730443070991,10.30045635,166.06,166.02,15.0584]
[1730443072789,10.30045635,166.07,166.02,15.0584]
[1730443073903,10.30045635,166.07,166.02,21.0817]
[1730443074077,10.30045635,166.07,166.02,31.38215635]
[1730443075797,10.30045635,166.08,166.02,31.38215635]
[1730443077086,10.30045635,166.07,166.02,31.38215635]
[1730443077279,10.30045635,166.07,166.03,23.776884]
[1730443078188,10.30045635,166.07,166.03,29.799684]
[1730443083402,10.30045635,166.05,166.02,15.0584]
[1730443084293,10.30045635,166.06,166.02,15.0584]
[1730443084703,10.30045635,166.09,166.03,34.07734035]
[1730443084894,10.30045635,166.06,166.03,23.776884]
[1730443085705,10.30045635,166.07,166.03,23.776884]
[1730443087177,1.04685386,166.11,166.03,23.776884]
[1730443087501,10.30045635,166.07,166.03,29.799684]
[1730443088189,10.30045635,166.06,166.03,29.799684]
[1730443088402,10.30045635,166.06,166.02,15.0584]
[1730443088601,10.30045635,166.05,166.02,15.0584]
[1730443088899,6.022,166.06,166.02,15.0584]
[1730443089205,6.022,166.06,166.02,25.35885635]
[1730443091000,16.32245635,166.06,166.01,10.30045635]
[1730443092005,16.32245635,166.06,166.01,16.32405635]
[1730443094182,10.30045635,166.07,166.01,16.32405635]
[1730443095104,16.32235635,166.06,166.01,16.32405635]
[1730443095286,16.32235635,166.06,166.01,6.0236]
[1730443097097,16.32235635,166.06,166.01,16.32405635]
[1730443098979,1.04685386,166.11,166.01,31.38335635]
[1730443098980,10.30045635,166.07,166.01,31.38335635]
[1730443103009,10.30045635,166.06,166.01,21.0829]
[1730443104189,16.32235635,166.06,166.01,15.0593]
[1730443104503,10.30045635,166.05,166.0,30.05817067]
[1730443104725,6.0219,166.06,166.0,30.05817067]
[1730443104726,10.30045635,166.04,166.0,30.05817067]
[1730443104911,10.30045635,166.04,166.0,36.08217067]
[1730443105901,10.30045635,166.05,166.0,36.08217067]
[1730443106688,10.30045635,166.05,166.0,30.05817067]
[1730443106893,10.30045635,166.03,166.0,6.28128667]
[1730443107107,16.32305635,166.04,166.0,6.28128667]
[1730443107489,16.32305635,166.04,165.98,54.04375635]
[1730443107683,16.32305635,166.04,165.98,60.32384593]
[1730443108804,10.30045635,166.04,165.98,50.02338958]
[1730443109007,10.30045635,166.07,166.01,10.30045635]
[1730443109318,10.30045635,166.06,166.01,10.30045635]
[1730443110325,10.30045635,166.05,166.0,10.30045635]
[1730443110516,10.30045635,166.05,166.0,16.32415635]
[1730443111816,10.30045635,166.04,165.98,54.29904593]
[1730443111994,10.30045635,166.04,165.98,60.32384593]
[1730443114904,10.30045635,166.03,165.98,50.02338958]
[1730443116424,16.32375635,166.02,165.98,22.31438958]
[1730443119304,10.30045635,166.03,165.98,22.31438958]
[1730443119522,10.30045635,166.03,165.98,32.61484593]
[1730443120305,10.30045635,166.03,165.98,53.70144593]
[1730443121125,10.30045635,166.04,165.98,53.70144593]
[1730443122437,6.023,166.03,165.98,53.70144593]
[1730443124847,16.32155635,166.08,166.02,10.30045635]
[1730443125335,10.30045635,166.07,166.02,10.30045635]
[1730443125539,10.30045635,166.07,166.01,10.30045635]
[1730443126115,10.30045635,166.07,166.01,16.32375635]
[1730443126936,10.30045635,166.08,166.03,10.30045635]
[1730443127946,10.30045635,166.08,166.03,16.32335635]
[1730443128115,10.30045635,166.08,166.03,6.0229]
[1730443130944,10.30045635,166.06,166.01,15.0593]
[1730443131116,10.30045635,166.04,166.01,15.0593]
[1730443131320,10.30045635,166.04,165.99,23.12713132]
[1730443131637,10.30045635,166.03,165.99,12.82667497]
[1730443132040,10.30045635,166.03,165.99,18.85107497]
[1730443132430,10.30045635,166.04,165.99,18.85107497]
[1730443134230,10.30045635,166.04,165.99,29.15153132]
[1730443135652,10.30045635,166.04,165.99,44.21263132]
[1730443137452,10.30045635,166.05,166.0,10.30045635]
[1730443137663,10.30045635,166.04,166.0,6.0238]
[1730443142959,10.30045635,166.05,166.0,31.38445635]
[1730443143560,10.30045635,166.07,166.01,10.30045635]
[1730443143738,10.30045635,166.07,166.02,10.30045635]
[1730443144152,10.30045635,166.08,166.03,10.30045635]
[1730443144847,10.30045635,166.07,166.03,15.0573]
[1730443145956,10.30045635,166.04,166.0,6.28484375]
[1730443146171,10.30045635,166.04,166.01,6.0235]
[1730443146867,18.40514601,166.12,166.01,6.0235]
[1730443146868,10.30045635,166.05,166.01,6.0235]
[1730443149362,10.30045635,166.06,166.01,6.0235]
[1730443149870,10.30045635,166.03,165.99,15.0604]
[1730443150441,10.30045635,166.02,165.99,15.0604]
[1730443150664,10.30045635,166.01,165.97,6.0251]
[1730443151547,10.30045635,166.01,165.96,51.2154]
[1730443151846,10.30045635,166.02,165.96,61.51585635]
[1730443152656,6.023,166.03,165.98,10.30045635]
[1730443153048,16.32285635,166.05,165.99,10.30045635]
[1730443153248,16.32285635,166.05,166.0,10.30045635]
[1730443153572,0.96744228,166.08,166.0,10.30045635]
[1730443153573,10.30045635,166.06,166.0,10.30045635]
[1730443154546,10.30045635,166.05,166.0,10.30045635]
[1730443154778,10.30045635,166.05,166.01,6.0237]
[1730443155377,10.30045635,166.06,166.01,31.38345635]
[1730443159855,10.30045635,166.07,166.01,31.38345635]
[1730443160679,10.30045635,166.07,166.02,10.30045635]
[1730443160883,10.30045635,166.08,166.03,10.30045635]
[1730443161187,10.30045635,166.08,166.04,6.0226]
[1730443162185,10.30045635,166.07,166.02,23.776884]
[1730443163273,10.30045635,166.07,166.03,6.023]
[1730443163588,10.30045635,166.05,166.01,21.083]
[1730443165685,10.30045635,166.04,166.01,15.0593]
[1730443166683,10.30045635,166.03,166.0,16.1879]
[1730443166983,10.30045635,166.04,166.0,16.1879]
[1730443167190,10.30045635,166.04,166.0,22.2118]
[1730443167690,6.0204,166.1,166.0,47.57245635]
[1730443167691,10.30045635,166.06,166.0,47.57245635]
[1730443167993,10.30045635,166.05,166.0,47.57245635]
[1730443170466,16.86225635,166.04,165.97,16.58510765]
[1730443170668,10.30045635,165.98,165.89,10.30045635]
[1730443170866,0.2,166.02,165.89,10.30045635]
[1730443170867,10.30045635,165.93,165.89,15.0697]
[1730443171064,10.30045635,165.93,165.87,22.61911193]
[1730443174787,10.30045635,165.92,165.87,12.31865558]
[1730443176465,6.0264,165.94,165.87,22.61911193]
[1730443176675,10.30045635,165.93,165.87,37.69111193]
[1730443177486,10.30045635,165.96,165.9,10.30045635]
[1730443178599,10.30045635,165.95,165.89,31.39865635]
[1730443179000,10.30045635,165.94,165.89,31.39865635]
[1730443179170,10.30045635,165.94,165.89,21.0982]
[1730443180095,10.30045635,165.93,165.89,21.0982]
[1730443180777,10.30045635,165.94,165.89,21.0982]
[1730443182101,10.30045635,165.94,165.89,31.39865635]
[1730443182799,10.30045635,165.94,165.87,6.28985558]
[1730443182800,10.30045635,165.9,165.87,6.28985558]
[1730443183009,10.30045635,165.88,165.81,10.30045635]
[1730443183291,20.1,165.92,165.8,15.0775]
[1730443183292,10.30045635,165.85,165.8,15.0775]
[1730443184178,10.30045635,165.85,165.8,21.1088]
[1730443184591,16.08797442,165.85,165.8,21.1088]
[1730443185597,23.27774488,165.92,165.8,21.1088]
[1730443185598,16.08797442,165.86,165.81,23.776884]
[1730443185808,16.08797442,165.85,165.81,23.776884]
[1730443186785,20.0,165.92,165.81,6.0307]
[1730443186786,16.08797442,165.84,165.81,6.0307]
[1730443187878,16.08797442,165.86,165.8,37.19677442]
[1730443188479,6.0287,165.88,165.8,21.1088]
[1730443188677,16.08797442,165.85,165.8,21.1088]
[1730443188879,16.08797442,165.86,165.8,37.19677442]
[1730443189704,16.08797442,165.87,165.81,16.08797442]
[1730443190108,16.08797442,165.86,165.81,6.0308]
[1730443190992,21.0485446,165.92,165.81,6.0308]
[1730443190993,16.08797442,165.87,165.81,37.19617442]
[1730443191200,16.08797442,165.91,165.85,16.08797442]
[1730443191506,16.08797442,165.95,165.89,16.08797442]
[1730443191691,16.08797442,165.94,165.89,16.08797442]
[1730443192083,16.08797442,165.94,165.89,22.11587442]
[1730443192408,16.08797442,165.94,165.89,6.0279]